[Event "Memorial Ukrainian Chess Warriors 2024"]
[Site "Lviv"]
[Date "2024.03.15"]
[Round "4.17"]
[White "Nakonechnyi, Oleksii"]
[Black "Hrabinska, Myroslava"]
[Result "1/2-1/2"]
[ECO "A13"]
[WhiteElo "1756"]
[BlackElo "2177"]
[Annotator "RC"]
[PlyCount "81"]
[EventDate "2024.03.06"]
[EventType "swiss"]
[EventCountry "UKR"]
[SourceTitle "playchess.com"]
[Source "ChessBase"]
[SourceQuality "1"]
[TimeControl "600+5"]

1. c4 {[%emt 0:00:02]} e6 {[%emt 0:00:03]} 2. e4 {[%emt 0:00:02]} d5 {[%emt 0:00:10]} 3. cxd5 {[%emt 0:00:01]} exd5 {[%emt 0:00:01]} 4. exd5 {[%emt 0:00:01]} Nf6 {[%emt 0:00:24]} 5. Nc3 {[%emt 0:00:04]} Nxd5 {[%emt 0:00:45]} 6. d4 {[%emt 0:00:10]} Bb4 {[%emt 0:01:42]} 7. Bd2 {[%emt 0:00:13]} O-O {[%emt 0:00:05]} 8. Bd3 {[%emt 0:00:08]} Nc6 {[%emt 0:00:57]} 9. Nge2 {[%emt 0:00:06]} Bg4 {[%emt 0:00:15]} 10. f3 {[%emt 0:00:26]} Bh5 {[%emt 0:00:09]} 11. O-O {[%emt 0:00:05]} Bg6 {[%emt 0:00:04]} 12. Ne4 {[%emt 0:00:12]} Bxd2 {[%emt 0:00:54]} 13. Qxd2 {[%emt 0:00:03]} Re8 {[%emt 0:00:14]} 14. Rfe1 {[%emt 0:01:10]} Nf6 {[%emt 0:00:15]} 15. Nxf6+ {[%emt 0:00:17]} Qxf6 {[%emt 0:00:02]} 16. Bxg6 {[%emt 0:00:42]} hxg6 {[%emt 0:00:02]} 17. d5 {[%emt 0:00:36]} Rad8 {[%emt 0:00:12]} 18. Nc3 {[%emt 0:00:01]} Rxe1+ {[%emt 0:01:09]} 19. Rxe1 {[%emt 0:00:13]} Ne7 {[%emt 0:00:01]} 20. Rd1 {[%emt 0:00:34]} Nf5 {[%emt 0:00:18]} 21. Ne4 {[%emt 0:00:29]} Qb6+ {[%emt 0:00:01]} 22. Qf2 {[%emt 0:00:00]} Ne3 {[%emt 0:00:17]} 23. Rd3 {[%emt 0:00:15]} Nxd5 {[%emt 0:00:05]} 24. Qxb6 {[%emt 0:00:01]} axb6 {[%emt 0:00:06]} 25. Nc3 {[%emt 0:00:05]} c6 {[%emt 0:00:02]} 26. Kf2 {[%emt 0:00:02]} Kf8 {[%emt 0:00:18]} 27. Nxd5 {[%emt 0:00:04]} cxd5 {[%emt 0:00:02]} 28. Ke3 {[%emt 0:00:02]} Ke7 {[%emt 0:00:05]} 29. Kd4 {[%emt 0:00:01]} Kd6 {[%emt 0:00:02]} 30. Rb3 {[%emt 0:00:03]} Kc6 {[%emt 0:00:04]} 31. Rc3+ {[%emt 0:00:01]} Kd6 {[%emt 0:00:27]} 32. Rb3 {[%emt 0:00:02]} Rh8 {[%emt 0:00:16]} 33. h3 {[%emt 0:00:05]} Rh4+ {[%emt 0:00:18]} 34. g4 {[%emt 0:00:05]} Rxh3 {[%emt 0:00:22]} 35. Rxb6+ Kc7 {[%emt 0:00:00]} 36. Rb3 {[%emt 0:00:03]} Kc6 {[%emt 0:00:09]} 37. Rc3+ {[%emt 0:00:10]} Kd6 {[%emt 0:00:03]} 38. Rb3 {[%emt 0:00:10]} Kc6 {[%emt 0:00:09]} 39. Rc3+ {[%emt 0:00:04]} Kd6 {[%emt 0:00:03]} 40. Rb3 {[%emt 0:00:01]} Kc6 {[%emt 0:00:34]} 41. Rc3+ {[%emt 0:00:01]} 1/2-1/2

[Event "Memorial Ukrainian Chess Warriors 2024"]
[Site "Lviv"]
[Date "2024.03.15"]
[Round "4.18"]
[White "Schults, Olev"]
[Black "Fainkihen, Efim"]
[Result "0-1"]
[ECO "B15"]
[WhiteElo "2109"]
[BlackElo "1976"]
[Annotator "RC"]
[PlyCount "94"]
[EventDate "2024.03.06"]
[EventType "swiss"]
[EventCountry "UKR"]
[SourceTitle "playchess.com"]
[Source "ChessBase"]
[SourceQuality "1"]
[TimeControl "600+5"]

1. e4 {[%emt 0:00:03]} c6 {[%emt 0:00:03]} 2. d4 {[%emt 0:00:01]} d5 {[%emt 0:00:02]} 3. Nd2 {[%emt 0:00:00]} dxe4 4. Nxe4 {[%emt 0:00:01]} Nf6 {[%emt 0:00:09]} 5. Nxf6+ {[%emt 0:00:02]} exf6 {[%emt 0:00:01]} 6. c3 {[%emt 0:00:00]} Bd6 {[%emt 0:00:02]} 7. Bd3 {[%emt 0:00:01]} O-O {[%emt 0:00:14]} 8. Qc2 {[%emt 0:00:01]} Re8+ {[%emt 0:00:13]} 9. Ne2 {[%emt 0:00:01]} h5 {[%emt 0:00:03]} 10. O-O {[%emt 0:00:02]} Nd7 {[%emt 0:00:15]} 11. Bd2 {[%emt 0:00:03]} Nf8 {[%emt 0:00:02]} 12. Rfe1 {[%emt 0:00:02]} Qc7 {[%emt 0:00:41]} 13. Ng3 {[%emt 0:00:40]} Bg4 {[%emt 0:00:15]} 14. Bf5 {[%emt 0:01:37]} Bxg3 {[%emt 0:00:42]} 15. hxg3 {[%emt 0:00:02]} g6 {[%emt 0:00:17]} 16. Bxg4 {[%emt 0:00:11]} hxg4 {[%emt 0:00:01]} 17. Re4 {[%emt 0:01:08]} f5 {[%emt 0:00:15]} 18. Bf4 {[%emt 0:00:13]} Qd7 {[%emt 0:00:14]} 19. Re5 {[%emt 0:01:01]} f6 {[%emt 0:00:13]} 20. Re2 {[%emt 0:00:14]} Rxe2 {[%emt 0:00:25]} 21. Qxe2 {[%emt 0:00:01]} Re8 {[%emt 0:00:01]} 22. Qc4+ {[%emt 0:02:12]} Kg7 {[%emt 0:00:09]} 23. Rd1 {[%emt 0:00:18]} g5 {[%emt 0:00:24]} 24. Bc1 {[%emt 0:00:21]} Ng6 {[%emt 0:00:25]} 25. d5 {[%emt 0:00:31]} Re4 {[%emt 0:01:21]} 26. Qc5 {[%emt 0:01:01]} cxd5 {[%emt 0:00:48]} 27. Qxa7 {[%emt 0:00:26]} f4 {[%emt 0:01:27]} 28. gxf4 {[%emt 0:01:08]} gxf4 {[%emt 0:00:03]} 29. Qa5 {[%emt 0:00:46]} g3 {[%emt 0:00:13]} 30. Qc5 {[%emt 0:00:14]} Qe6 {[%emt 0:01:07]} 31. Rf1 {[%emt 0:00:06]} Nh4 {[%emt 0:00:19]} 32. fxg3 {[%emt 0:00:03]} fxg3 {[%emt 0:00:27]} 33. Qc7+ {[%emt 0:00:01]} Kg6 {[%emt 0:00:08]} 34. Qxg3+ {[%emt 0:00:03]} Rg4 {[%emt 0:00:04]} 35. Qd3+ {[%emt 0:00:01]} f5 {[%emt 0:00:22]} 36. g3 {[%emt 0:00:02]} Qb6+ {[%emt 0:00:34]} 37. Kh2 {[%emt 0:00:06]} Qc7 {[%emt 0:00:53]} 38. Bf4 {[%emt 0:00:03]} Qh7 {[%emt 0:00:10]} 39. Kg1 {[%emt 0:00:15]} Qe7 {[%emt 0:00:11]} 40. Qd2 {[%emt 0:00:16]} Qe4 {[%emt 0:00:02]} 41. Qf2 {[%emt 0:00:05]} Kf6 {[%emt 0:00:07]} 42. Kh2 {[%emt 0:00:01]} Ng6 {[%emt 0:00:02]} 43. Re1 {[%emt 0:00:00]} Qc4 {[%emt 0:00:06]} 44. b3 {[%emt 0:00:04]} Qc6 {[%emt 0:00:03]} 45. Qd4+ {[%emt 0:00:01]} Kf7 {[%emt 0:00:02]} 46. Rd1 {[%emt 0:00:05]} Nxf4 47. Qxd5+ {[%emt 0:00:04]} Nxd5 {[%emt 0:00:02]} 0-1

[Event "Memorial Ukrainian Chess Warriors 2024"]
[Site "Lviv"]
[Date "2024.03.15"]
[Round "4.19"]
[White "Skarbarchuk, Tetyana"]
[Black "Velychko, Semen"]
[Result "1-0"]
[ECO "D85"]
[WhiteElo "1929"]
[BlackElo "1905"]
[Annotator "NA RC"]
[PlyCount "67"]
[EventDate "2024.03.06"]
[EventType "swiss"]
[EventCountry "UKR"]
[SourceTitle "playchess.com"]
[Source "ChessBase"]
[SourceQuality "1"]
[TimeControl "600+5"]

1. d4 {[%emt 0:00:03]} Nf6 {[%emt 0:00:02]} 2. c4 {[%emt 0:00:01]} g6 {[%emt 0:00:01]} 3. Nc3 {[%emt 0:00:02]} d5 {[%emt 0:00:02]} 4. cxd5 {[%emt 0:00:01]} Nxd5 {[%emt 0:00:02]} 5. Bd2 {[%emt 0:00:01]} Bg7 {[%emt 0:00:01]} 6. e4 {[%emt 0:00:02]} Nxc3 {[%emt 0:00:02]} 7. Bxc3 {[%emt 0:00:01]} c5 {[%emt 0:00:01]} 8. d5 {[%emt 0:00:03]} Bxc3+ {[%emt 0:00:02]} 9. bxc3 {[%emt 0:00:02]} O-O {[%emt 0:00:03]} 10. Be2 {[%emt 0:00:11]} Nd7 {[%emt 0:00:27]} 11. Nf3 {[%emt 0:00:09]} Nf6 {[%emt 0:00:14]} 12. Qd3 {[%emt 0:00:15]} Qc7 {[%emt 0:00:39]} 13. O-O {[%emt 0:00:16]} Bg4 {[%emt 0:00:21]} 14. Nd2 {[%emt 0:00:58]} Bxe2 {[%emt 0:00:13]} 15. Qxe2 {[%emt 0:00:02]} Rad8 {[%emt 0:00:23]} 16. c4 {[%emt 0:00:23]} Qe5 {[%emt 0:00:34]} 17. Rab1 {[%emt 0:00:49]} b6 {[%emt 0:00:04]} 18. Rfe1 {[%emt 0:00:51]} e6 {[%emt 0:01:16]} 19. Nf3 {[%emt 0:01:01]} Qh5 {[%emt 0:00:11]} 20. e5 {[%emt 0:01:16]} Nd7 {[%emt 0:00:07]} 21. Rbd1 {[%emt 0:00:19]} exd5 {[%emt 0:00:23]} 22. e6 {[%emt 0:00:48]} fxe6 {[%emt 0:00:37]} 23. Qxe6+ {[%emt 0:00:02]} Rf7 {[%emt 0:00:40]} 24. Rxd5 {[%emt 0:00:01]} Qh6 {[%emt 0:00:09]} 25. Ne5 {[%emt 0:00:27]} Qg7 {[%emt 0:00:14]} 26. Rxd7 {[%emt 0:00:12]} Rdxd7 {[%emt 0:00:08]} 27. Nxd7 {[%emt 0:00:03]} Qd4 {[%emt 0:00:10]} 28. Qe8+ {[%emt 0:00:08]} Kg7 {[%emt 0:00:01]} 29. Qe5+ {[%emt 0:00:01]} Qxe5 {[%emt 0:00:03]} 30. Nxe5 {[%emt 0:00:02]} Re7 {[%emt 0:00:03]} 31. f4 {[%emt 0:00:07]} a6 {[%emt 0:00:05]} 32. Rb1 {[%emt 0:00:08]} Re6 {[%emt 0:00:02]} 33. Kf2 {[%emt 0:00:08]} Kf6 {[%emt 0:00:01]} 34. Rxb6 {[%emt 0:00:36]} 1-0

[Event "Memorial Ukrainian Chess Warriors 2024"]
[Site "Lviv"]
[Date "2024.03.15"]
[Round "4.20"]
[White "Piuro, Vladyslav"]
[Black "Torzhkov, Andrey"]
[Result "1/2-1/2"]
[ECO "A06"]
[WhiteElo "2051"]
[BlackElo "1707"]
[Annotator "RC"]
[PlyCount "89"]
[EventDate "2024.03.06"]
[EventType "swiss"]
[EventCountry "UKR"]
[SourceTitle "playchess.com"]
[Source "ChessBase"]
[SourceQuality "1"]
[TimeControl "600+5"]

1. Nf3 {[%emt 0:00:03]} d5 {[%emt 0:00:01]} 2. d4 {[%emt 0:00:03]} e6 {[%emt 0:00:01]} 3. c4 {[%emt 0:00:01]} c6 {[%emt 0:00:03]} 4. e3 {[%emt 0:00:02]} Nd7 {[%emt 0:00:03]} 5. Nbd2 {[%emt 0:00:03]} f5 {[%emt 0:00:04]} 6. b3 {[%emt 0:00:10]} Bd6 {[%emt 0:00:02]} 7. Bb2 {[%emt 0:00:03]} Ngf6 {[%emt 0:00:04]} 8. Bd3 {[%emt 0:00:08]} O-O {[%emt 0:00:14]} 9. O-O {[%emt 0:00:05]} Ne4 {[%emt 0:00:06]} 10. Qe2 {[%emt 0:00:19]} Qf6 {[%emt 0:00:03]} 11. Rac1 {[%emt 0:00:13]} Qh6 {[%emt 0:00:19]} 12. Ne5 {[%emt 0:00:22]} Bb4 {[%emt 0:01:59]} 13. Bxe4 {[%emt 0:00:39]} fxe4 {[%emt 0:00:04]} 14. f4 {[%emt 0:00:09]} Nxe5 {[%emt 0:00:54]} 15. dxe5 {[%emt 0:00:11]} Bd7 {[%emt 0:00:28]} 16. Bc3 {[%emt 0:00:23]} Be7 {[%emt 0:00:25]} 17. Rcd1 {[%emt 0:00:14]} Rad8 {[%emt 0:00:01]} 18. Qg4 {[%emt 0:00:16]} Kh8 {[%emt 0:00:18]} 19. cxd5 {[%emt 0:00:28]} cxd5 {[%emt 0:00:51]} 20. Bd4 {[%emt 0:00:08]} Bb5 {[%emt 0:00:03]} 21. Rfe1 {[%emt 0:00:44]} Rc8 {[%emt 0:00:26]} 22. Rc1 {[%emt 0:02:16]} Bb4 {[%emt 0:00:03]} 23. Qd1 {[%emt 0:00:16]} a6 {[%emt 0:00:26]} 24. Bb2 {[%emt 0:00:39]} Qh4 {[%emt 0:00:41]} 25. a3 {[%emt 0:00:28]} Ba5 {[%emt 0:00:02]} 26. b4 {[%emt 0:00:16]} Bb6 {[%emt 0:00:09]} 27. Rxc8 {[%emt 0:01:43]} Rxc8 {[%emt 0:00:01]} 28. g3 {[%emt 0:00:06]} Qe7 {[%emt 0:00:24]} 29. Bd4 {[%emt 0:00:38]} Bxd4 {[%emt 0:00:10]} 30. exd4 {[%emt 0:00:01]} Rc3 {[%emt 0:00:03]} 31. Qg4 {[%emt 0:00:29]} Rxa3 {[%emt 0:00:52]} 32. Rc1 {[%emt 0:00:01]} g6 {[%emt 0:00:15]} 33. h4 {[%emt 0:00:09]} Rd3 {[%emt 0:00:01]} 34. Nf1 {[%emt 0:00:11]} Bc6 {[%emt 0:00:16]} 35. h5 {[%emt 0:00:11]} Qf7 {[%emt 0:00:26]} 36. hxg6 {[%emt 0:00:07]} Qxg6 {[%emt 0:00:19]} 37. Qh4 {[%emt 0:00:03]} Rxd4 {[%emt 0:00:49]} 38. Qd8+ {[%emt 0:00:14]} Kg7 {[%emt 0:00:26]} 39. Rc2 {[%emt 0:00:25]} Rd1 {[%emt 0:00:21]} 40. Rh2 {[%emt 0:00:18]} e3 {[%emt 0:00:58]} 41. Qe7+ {[%emt 0:00:04]} Kg8 {[%emt 0:00:01]} 42. Qd8+ {[%emt 0:00:06]} Be8 {[%emt 0:00:05]} 43. f5 {[%emt 0:00:03]} exf5 {[%emt 0:00:14]} 44. Qe7 {[%emt 0:00:10]} f4 45. Rh4 1/2-1/2

[Event "Memorial Ukrainian Chess Warriors 2024"]
[Site "Lviv"]
[Date "2024.03.15"]
[Round "4.21"]
[White "Trushko, Andrii"]
[Black "Rushynets, Ivan"]
[Result "1-0"]
[ECO "D14"]
[WhiteElo "2050"]
[BlackElo "1852"]
[Annotator "RC"]
[PlyCount "99"]
[EventDate "2024.03.06"]
[EventType "swiss"]
[EventCountry "UKR"]
[SourceTitle "playchess.com"]
[Source "ChessBase"]
[SourceQuality "1"]
[TimeControl "600+5"]

1. d4 c6 2. c4 {[%emt 0:00:14]} d5 {[%emt 0:00:01]} 3. cxd5 {[%emt 0:00:10]} cxd5 {[%emt 0:00:01]} 4. Nc3 {[%emt 0:00:04]} Nf6 {[%emt 0:00:04]} 5. Nf3 {[%emt 0:00:02]} Nc6 {[%emt 0:00:02]} 6. Bf4 {[%emt 0:00:06]} Bf5 {[%emt 0:00:04]} 7. Qb3 {[%emt 0:00:02]} Na5 {[%emt 0:00:54]} 8. Qa4+ {[%emt 0:00:02]} Bd7 {[%emt 0:00:03]} 9. Qc2 {[%emt 0:00:02]} e6 {[%emt 0:00:13]} 10. a3 {[%emt 0:00:31]} Rc8 {[%emt 0:00:09]} 11. Bg5 {[%emt 0:00:39]} Be7 {[%emt 0:00:13]} 12. Bxf6 {[%emt 0:00:07]} Bxf6 {[%emt 0:00:02]} 13. e3 {[%emt 0:00:01]} O-O {[%emt 0:00:10]} 14. Bd3 {[%emt 0:00:09]} h6 {[%emt 0:00:24]} 15. O-O {[%emt 0:00:04]} Qb6 {[%emt 0:00:21]} 16. b4 {[%emt 0:01:15]} Nc4 {[%emt 0:00:18]} 17. Bxc4 {[%emt 0:00:02]} Rxc4 {[%emt 0:00:17]} 18. Nd2 {[%emt 0:00:17]} Rc7 {[%emt 0:00:28]} 19. Qb2 {[%emt 0:00:02]} Rfc8 {[%emt 0:00:03]} 20. Rac1 {[%emt 0:00:04]} Bb5 {[%emt 0:01:00]} 21. Rfe1 {[%emt 0:00:44]} Bd3 {[%emt 0:00:36]} 22. Na4 {[%emt 0:00:57]} Qd6 {[%emt 0:02:11]} 23. Nc5 {[%emt 0:00:49]} Bg6 {[%emt 0:00:10]} 24. Nxb7 {[%emt 0:00:33]} Qb6 {[%emt 0:02:04]} 25. Na5 {[%emt 0:00:36]} Rc2 {[%emt 0:00:13]} 26. Qa1 {[%emt 0:00:01]} Kh7 {[%emt 0:00:36]} 27. Ndb3 {[%emt 0:00:22]} Bh4 {[%emt 0:00:39]} 28. g3 {[%emt 0:00:18]} Be7 {[%emt 0:00:00]} 29. Nc5 {[%emt 0:00:23]} h5 {[%emt 0:00:31]} 30. Rxc2 {[%emt 0:00:10]} Bxc2 {[%emt 0:00:01]} 31. Rc1 {[%emt 0:00:03]} Bg6 {[%emt 0:00:01]} 32. Nd7 {[%emt 0:00:16]} Rxc1+ {[%emt 0:00:03]} 33. Qxc1 {[%emt 0:00:02]} Qb5 {[%emt 0:00:01]} 34. Ne5 {[%emt 0:00:02]} Bf5 {[%emt 0:00:06]} 35. Qd1 {[%emt 0:00:33]} g6 {[%emt 0:00:29]} 36. Nxf7 {[%emt 0:00:13]} Bg4 {[%emt 0:00:02]} 37. Qf1 {[%emt 0:00:32]} Be2 {[%emt 0:00:02]} 38. Qc1 {[%emt 0:00:04]} Qd3 {[%emt 0:00:06]} 39. Ne5 {[%emt 0:00:09]} Qf5 {[%emt 0:00:03]} 40. Qe1 {[%emt 0:00:16]} Bb5 {[%emt 0:00:05]} 41. Nb7 {[%emt 0:00:36]} h4 {[%emt 0:00:04]} 42. Nc5 {[%emt 0:00:14]} h3 {[%emt 0:00:10]} 43. a4 {[%emt 0:00:04]} Bxc5 {[%emt 0:00:08]} 44. bxc5 {[%emt 0:00:02]} Bxa4 {[%emt 0:00:04]} 45. Qf1 {[%emt 0:00:04]} g5 {[%emt 0:00:18]} 46. g4 {[%emt 0:00:02]} Qe4 {[%emt 0:00:18]} 47. Qxh3+ {[%emt 0:00:02]} Kg7 {[%emt 0:00:01]} 48. Qh5 {[%emt 0:00:21]} Qb1+ 49. Kg2 {[%emt 0:00:03]} Qe4+ {[%emt 0:00:09]} 50. Kg3 {[%emt 0:00:02]} 1-0

[Event "Memorial Ukrainian Chess Warriors 2024"]
[Site "Lviv"]
[Date "2024.03.15"]
[Round "4.22"]
[White "Kipen, Svyatoslav"]
[Black "Nedilko, Vasily"]
[Result "0-1"]
[ECO "B26"]
[WhiteElo "1710"]
[BlackElo "2324"]
[Annotator "RC"]
[PlyCount "104"]
[EventDate "2024.03.06"]
[EventType "swiss"]
[EventCountry "UKR"]
[SourceTitle "playchess.com"]
[Source "ChessBase"]
[SourceQuality "1"]
[TimeControl "600+5"]

1. e4 {[%emt 0:00:02]} c5 {[%emt 0:00:00]} 2. Nc3 {[%emt 0:00:02]} d6 {[%emt 0:00:01]} 3. g3 {[%emt 0:00:02]} g6 {[%emt 0:00:01]} 4. Bg2 {[%emt 0:00:02]} Bg7 {[%emt 0:00:01]} 5. d3 {[%emt 0:00:01]} Nc6 {[%emt 0:00:00]} 6. Be3 {[%emt 0:00:02]} Nf6 {[%emt 0:00:02]} 7. h3 {[%emt 0:00:01]} O-O {[%emt 0:00:04]} 8. Qd2 {[%emt 0:00:02]} Rb8 {[%emt 0:00:20]} 9. a4 {[%emt 0:00:02]} a6 {[%emt 0:00:01]} 10. Bh6 {[%emt 0:00:03]} e5 {[%emt 0:00:07]} 11. Bxg7 {[%emt 0:00:03]} Kxg7 {[%emt 0:00:02]} 12. Nf3 {[%emt 0:00:03]} b5 {[%emt 0:00:16]} 13. axb5 {[%emt 0:00:02]} axb5 {[%emt 0:00:01]} 14. O-O {[%emt 0:00:02]} b4 {[%emt 0:00:05]} 15. Ne2 {[%emt 0:00:01]} Qb6 {[%emt 0:02:13]} 16. g4 {[%emt 0:00:53]} h5 {[%emt 0:00:56]} 17. g5 {[%emt 0:00:21]} Ne8 {[%emt 0:00:34]} 18. Nh4 {[%emt 0:00:24]} Nc7 {[%emt 0:01:07]} 19. Kh1 {[%emt 0:00:28]} Ne6 {[%emt 0:00:12]} 20. f4 {[%emt 0:00:06]} exf4 {[%emt 0:00:18]} 21. Nxf4 {[%emt 0:00:11]} Nxf4 {[%emt 0:01:18]} 22. Qxf4 {[%emt 0:00:03]} Qd8 {[%emt 0:00:14]} 23. Rae1 {[%emt 0:00:55]} Ne5 {[%emt 0:00:23]} 24. Nf3 {[%emt 0:00:23]} f6 {[%emt 0:01:42]} 25. Qe3 {[%emt 0:02:09]} Qe7 {[%emt 0:00:51]} 26. gxf6+ {[%emt 0:00:50]} Rxf6 {[%emt 0:00:10]} 27. Nxe5 {[%emt 0:00:06]} Rxf1+ {[%emt 0:00:27]} 28. Rxf1 {[%emt 0:00:04]} Qxe5 {[%emt 0:00:01]} 29. Ra1 {[%emt 0:00:38]} Rb7 {[%emt 0:00:43]} 30. Ra8 {[%emt 0:01:26]} Be6 {[%emt 0:00:03]} 31. Re8 {[%emt 0:00:14]} Ra7 {[%emt 0:00:16]} 32. Bf1 {[%emt 0:01:17]} Ra1 {[%emt 0:00:06]} 33. Kg1 {[%emt 0:00:48]} Rxf1+ {[%emt 0:00:06]} 34. Kxf1 {[%emt 0:00:06]} Bxh3+ 35. Qxh3 {[%emt 0:00:04]} Qxe8 {[%emt 0:00:01]} 36. Ke2 {[%emt 0:00:14]} Qe7 {[%emt 0:00:07]} 37. b3 {[%emt 0:00:14]} Kh6 {[%emt 0:00:06]} 38. Qc8 {[%emt 0:00:09]} Qe5 {[%emt 0:00:11]} 39. Qf8+ {[%emt 0:00:04]} Kg5 {[%emt 0:00:01]} 40. Qd8+ {[%emt 0:00:19]} Kg4 {[%emt 0:00:03]} 41. Qd7+ {[%emt 0:00:07]} Kg3 {[%emt 0:00:04]} 42. Qf7 {[%emt 0:00:05]} Qg5 {[%emt 0:00:11]} 43. Qf3+ {[%emt 0:00:03]} Kh2 {[%emt 0:00:02]} 44. Qf7 {[%emt 0:00:22]} Qg4+ {[%emt 0:00:04]} 45. Kd2 {[%emt 0:00:03]} Qg2+ {[%emt 0:00:04]} 46. Kd1 {[%emt 0:00:03]} Qg3 {[%emt 0:00:01]} 47. Kd2 {[%emt 0:00:09]} Kg2 {[%emt 0:00:04]} 48. Kc1 {[%emt 0:00:05]} h4 {[%emt 0:00:01]} 49. Qd5 {[%emt 0:00:06]} Qe5 {[%emt 0:00:03]} 50. Qf7 {[%emt 0:00:04]} Qg5+ {[%emt 0:00:02]} 51. Kb1 {[%emt 0:00:04]} h3 {[%emt 0:00:01]} 52. c3 {[%emt 0:00:09]} h2 {[%emt 0:00:02]} 0-1

[Event "Memorial Ukrainian Chess Warriors 2024"]
[Site "Lviv"]
[Date "2024.03.15"]
[Round "4.23"]
[White "Katsan, Danylo"]
[Black "Vasynda, Oleksandr"]
[Result "1/2-1/2"]
[ECO "A04"]
[WhiteElo "1815"]
[BlackElo "2219"]
[Annotator "RC"]
[PlyCount "123"]
[EventDate "2024.03.06"]
[EventType "swiss"]
[EventCountry "UKR"]
[SourceTitle "playchess.com"]
[Source "ChessBase"]
[SourceQuality "1"]
[TimeControl "600+5"]

1. Nf3 {[%emt 0:00:03]} c5 {[%emt 0:00:03]} 2. b3 {[%emt 0:00:01]} Nc6 {[%emt 0:00:02]} 3. Bb2 {[%emt 0:00:01]} d5 {[%emt 0:00:01]} 4. e3 {[%emt 0:00:02]} Bg4 {[%emt 0:00:06]} 5. Be2 {[%emt 0:00:01]} Nf6 {[%emt 0:00:06]} 6. d3 {[%emt 0:00:10]} e6 {[%emt 0:00:04]} 7. Nbd2 {[%emt 0:00:02]} Bd6 {[%emt 0:00:01]} 8. O-O {[%emt 0:00:02]} O-O {[%emt 0:00:05]} 9. a4 {[%emt 0:00:03]} e5 {[%emt 0:00:20]} 10. h3 {[%emt 0:00:07]} Bxf3 {[%emt 0:00:10]} 11. Bxf3 {[%emt 0:00:03]} a6 {[%emt 0:00:08]} 12. e4 {[%emt 0:00:13]} d4 {[%emt 0:00:06]} 13. Nc4 {[%emt 0:00:05]} Bc7 {[%emt 0:00:06]} 14. Ba3 {[%emt 0:00:33]} Nb4 {[%emt 0:01:16]} 15. Qd2 {[%emt 0:00:59]} a5 {[%emt 0:00:21]} 16. Be2 {[%emt 0:01:01]} Ne8 {[%emt 0:00:13]} 17. Rae1 {[%emt 0:00:48]} Qe7 {[%emt 0:00:15]} 18. Qd1 {[%emt 0:02:01]} Nd6 {[%emt 0:00:16]} 19. Bc1 {[%emt 0:00:17]} f5 {[%emt 0:00:19]} 20. exf5 {[%emt 0:00:05]} Nxf5 {[%emt 0:00:20]} 21. Bf3 {[%emt 0:00:14]} Rab8 {[%emt 0:00:11]} 22. Be4 {[%emt 0:00:14]} Nd6 {[%emt 0:00:22]} 23. Nxe5 {[%emt 0:00:56]} Nxe4 {[%emt 0:00:05]} 24. Rxe4 {[%emt 0:00:03]} Bxe5 {[%emt 0:00:11]} 25. f4 {[%emt 0:00:02]} Nd5 {[%emt 0:00:31]} 26. Rxe5 {[%emt 0:00:10]} Qd6 {[%emt 0:00:05]} 27. Qh5 {[%emt 0:00:52]} Rbd8 {[%emt 0:00:38]} 28. Rfe1 {[%emt 0:00:14]} b6 {[%emt 0:00:57]} 29. Qg4 {[%emt 0:01:12]} Kh8 {[%emt 0:02:50]} 30. Bd2 {[%emt 0:00:19]} h6 {[%emt 0:00:11]} 31. Re6 {[%emt 0:00:17]} Qc7 {[%emt 0:00:03]} 32. f5 {[%emt 0:00:22]} Qf7 {[%emt 0:00:12]} 33. Bxh6 {[%emt 0:00:14]} Nf6 {[%emt 0:00:02]} 34. Rxf6 {[%emt 0:00:20]} Qxf6 {[%emt 0:00:16]} 35. Bg5 {[%emt 0:00:02]} Qd6 {[%emt 0:00:29]} 36. Re6 {[%emt 0:00:14]} Qd7 {[%emt 0:00:12]} 37. Qh4+ {[%emt 0:00:05]} Kg8 {[%emt 0:00:02]} 38. Bxd8 {[%emt 0:00:01]} Rxd8 {[%emt 0:00:05]} 39. Re7 {[%emt 0:00:02]} Qxf5 {[%emt 0:00:15]} 40. Rxg7+ {[%emt 0:00:02]} Kxg7 {[%emt 0:00:01]} 41. Qxd8 {[%emt 0:00:01]} Qe6 {[%emt 0:00:01]} 42. Qc7+ {[%emt 0:00:04]} Kh8 {[%emt 0:00:08]} 43. Qd8+ {[%emt 0:00:02]} Kg7 {[%emt 0:00:04]} 44. Qg5+ {[%emt 0:00:01]} Kf8 {[%emt 0:00:03]} 45. Qf4+ {[%emt 0:00:02]} Ke7 {[%emt 0:00:05]} 46. Qe4 {[%emt 0:00:01]} Qxe4 47. dxe4 {[%emt 0:00:01]} b5 {[%emt 0:00:03]} 48. Kf2 {[%emt 0:00:08]} c4 {[%emt 0:00:01]} 49. Ke2 {[%emt 0:00:07]} d3+ {[%emt 0:00:09]} 50. Kd2 {[%emt 0:00:05]} dxc2 {[%emt 0:00:05]} 51. Kxc2 {[%emt 0:00:04]} cxb3+ {[%emt 0:00:01]} 52. Kxb3 {[%emt 0:00:01]} b4 {[%emt 0:00:01]} 53. h4 {[%emt 0:00:02]} Kf6 {[%emt 0:00:02]} 54. g4 {[%emt 0:00:01]} Ke5 {[%emt 0:00:02]} 55. h5 {[%emt 0:00:01]} Kf6 {[%emt 0:00:01]} 56. Kc4 {[%emt 0:00:01]} Kg5 {[%emt 0:00:07]} 57. e5 {[%emt 0:00:02]} Kh6 {[%emt 0:00:01]} 58. e6 {[%emt 0:00:01]} Kg7 {[%emt 0:00:01]} 59. g5 {[%emt 0:00:02]} Kf8 {[%emt 0:00:02]} 60. h6 {[%emt 0:00:02]} b3 {[%emt 0:00:01]} 61. Kxb3 {[%emt 0:00:01]} Ke7 {[%emt 0:00:01]} 62. h7 1/2-1/2